bitfinex/quotes_BTCUSD_20241107
["timestamp","ask_amount","ask_price","bid_price","bid_amount"]
[1730994938380,0.13724102,75974.0,75968.0,0.02396]
[1730994938807,0.19080077,75974.0,75968.0,0.02396]
[1730994939272,0.22610218,75969.0,75968.0,0.025626]
[1730994939545,0.16024102,75969.0,75968.0,0.023626]
[1730994939762,0.16028128,75969.0,75968.0,0.018626]
[1730994940247,0.16028128,75969.0,75968.0,0.017626]
[1730994940469,0.16028128,75969.0,75968.0,0.016626]
[1730994940708,0.16028128,75969.0,75968.0,0.018626]
[1730994940937,0.16028128,75969.0,75968.0,0.025626]
[1730994941612,4.026e-05,75969.0,75968.0,0.025626]
[1730994941839,0.00504026,75969.0,75968.0,0.025626]
[1730994945423,4.026e-05,75969.0,75968.0,0.025626]
[1730994946349,0.20113477,75976.0,75968.0,0.025626]
[1730994946585,0.13224102,75975.0,75968.0,0.025626]
[1730994947035,0.13224102,75975.0,75968.0,0.018626]
[1730994947522,0.002,75976.0,75968.0,0.019626]
[1730994947744,0.19815218,75980.0,75968.0,0.016626]
[1730994947977,5e-05,75980.0,75974.0,0.005]
[1730994948230,0.002,75975.0,75974.0,0.0915]
[1730994948465,0.19810218,75979.0,75978.0,0.005]
[1730994948908,5e-05,75980.0,75979.0,0.005]
[1730994950913,0.00105,75980.0,75979.0,0.027]
[1730994951160,0.13329102,75980.0,75979.0,0.027]
[1730994951629,0.15629102,75980.0,75979.0,0.027]
[1730994952077,0.15829102,75980.0,75979.0,0.027]
[1730994952297,0.15529102,75980.0,75979.0,0.014]
[1730994952518,0.21555443,75980.0,75979.0,0.015]
[1730994952964,0.20955443,75980.0,75979.0,0.014]
[1730994953184,0.002,75978.0,75968.0,0.016626]
[1730994953402,0.023,75975.0,75968.0,0.016626]
[1730994953643,0.06331341,75980.0,75968.0,0.016626]
[1730994953644,0.023,75973.0,75968.0,0.016626]
[1730994953881,0.13224102,75972.0,75968.0,0.016626]
[1730994954638,0.13224102,75972.0,75968.0,0.026626]
[1730994954849,0.13224102,75972.0,75968.0,0.016626]
[1730994955478,0.13224102,75972.0,75968.0,0.017626]
[1730994955786,0.1846166,75972.0,75968.0,0.017626]
[1730994956014,0.1846166,75972.0,75968.0,0.016626]
[1730994956419,0.1846166,75972.0,75968.0,0.030626]
[1730994956856,0.1606166,75972.0,75968.0,0.030626]
[1730994958088,0.1626166,75972.0,75968.0,0.030626]
[1730994958525,0.15704428,75972.0,75968.0,0.030626]
[1730994958973,0.15504428,75972.0,75968.0,0.030626]
[1730994959373,0.15704428,75972.0,75968.0,0.030626]
[1730994959592,0.023,75970.0,75968.0,0.030626]
[1730994959809,0.15524102,75969.0,75968.0,0.030626]
[1730994960040,0.23804102,75969.0,75968.0,0.030626]
[1730994960488,0.23804102,75969.0,75968.0,0.026626]
[1730994960691,0.23804102,75969.0,75968.0,0.016626]
[1730994961496,0.24104102,75969.0,75968.0,0.017626]
[1730994961741,0.003,75969.0,75968.0,0.021626]
[1730994962249,0.003,75969.0,75968.0,0.017626]
[1730994962731,0.012,75969.0,75968.0,0.018626]
[1730994963141,5e-05,75970.0,75968.0,0.016626]
[1730994963348,5e-05,75970.0,75968.0,0.026626]
[1730994963552,5e-05,75970.0,75968.0,0.029626]
[1730994964252,5e-05,75970.0,75968.0,0.019626]
[1730994964688,5e-05,75970.0,75968.0,0.029626]
[1730994964908,5e-05,75970.0,75968.0,0.026626]
[1730994965133,5e-05,75970.0,75968.0,0.029626]
[1730994967344,0.23744102,75969.0,75968.0,0.029626]
[1730994968191,0.23744102,75969.0,75968.0,0.026626]
[1730994968603,0.23744102,75969.0,75968.0,0.027626]
[1730994969030,0.23744102,75969.0,75968.0,0.026626]
[1730994969481,0.24644102,75969.0,75968.0,0.027626]
[1730994969703,0.26301259,75969.0,75968.0,0.027626]
[1730994969903,0.26301259,75969.0,75968.0,0.017626]
[1730994970125,0.24644102,75969.0,75968.0,0.017626]
[1730994970390,0.24844102,75969.0,75968.0,0.018626]
[1730994970610,0.25044102,75969.0,75968.0,0.018626]
[1730994970832,0.25044102,75969.0,75968.0,0.043626]
[1730994971562,0.40344112,75969.0,75968.0,0.043626]
[1730994971758,0.24844102,75969.0,75968.0,0.043626]
[1730994972204,0.25044102,75969.0,75968.0,0.043626]
[1730994972410,0.24844102,75969.0,75968.0,0.043626]
[1730994972641,0.25044102,75969.0,75968.0,0.043626]
[1730994972840,0.24844102,75969.0,75968.0,0.043626]
[1730994974086,0.25044102,75969.0,75968.0,0.043626]
[1730994974761,0.27668175,75969.0,75968.0,0.043626]
[1730994974995,0.38207302,75969.0,75968.0,0.043626]
[1730994975216,0.25044102,75969.0,75968.0,0.043626]
[1730994978944,0.25044102,75969.0,75948.0,0.19810218]
[1730994978945,0.002,75968.0,75948.0,0.19810218]
[1730994979169,0.57411789,75968.0,75948.0,0.19810218]
[1730994979578,0.023,75954.0,75948.0,0.19810218]
[1730994979822,0.023,75952.0,75948.0,0.19810218]
[1730994980038,0.13224102,75951.0,75947.0,0.001666]
[1730994980265,0.023,75950.0,75947.0,0.001666]
[1730994980501,0.023,75948.0,75947.0,0.001666]
[1730994980712,0.15724102,75948.0,75947.0,0.001666]
[1730994981359,0.44191012,75948.0,75947.0,0.001666]
[1730994981580,0.54191012,75948.0,75947.0,0.001666]
[1730994981818,0.55591012,75948.0,75947.0,0.001666]
[1730994982038,0.77015289,75948.0,75936.0,0.001666]
[1730994982258,0.81024112,75937.0,75936.0,0.001666]
[1730994982462,0.81024112,75937.0,75929.0,0.001668]
[1730994982463,0.1780001,75930.0,75929.0,0.001668]
[1730994982667,0.39224112,75930.0,75929.0,0.001668]
[1730994982868,0.43146523,75930.0,75929.0,0.001668]
[1730994983111,0.39224112,75930.0,75929.0,0.001668]
[1730994983986,0.38662612,75930.0,75929.0,0.001668]
[1730994984430,0.55284838,75930.0,75929.0,0.001668]
[1730994984654,0.65284838,75930.0,75929.0,0.001668]
[1730994984888,0.79909115,75930.0,75929.0,0.001668]
[1730994985096,0.53514838,75930.0,75929.0,0.001668]
[1730994985544,0.66684838,75930.0,75929.0,0.001668]
[1730994985763,0.68084838,75930.0,75929.0,0.001668]
[1730994986432,0.66684838,75930.0,75929.0,0.001668]
[1730994986657,0.76549597,75930.0,75929.0,0.001668]
[1730994987086,0.73097371,75930.0,75929.0,0.001668]
[1730994987317,0.023,75915.0,75913.0,0.001668]
[1730994987534,0.61816902,75914.0,75913.0,0.001668]
[1730994987741,0.51662712,75914.0,75913.0,0.001668]
[1730994987945,0.23644102,75914.0,75913.0,0.001668]
[1730994988174,0.15524102,75914.0,75913.0,0.001668]
[1730994989060,0.5367,75915.0,75913.0,0.001668]
[1730994989061,0.1125,75917.0,75913.0,0.001668]
[1730994989268,0.13224102,75916.0,75913.0,0.001668]
[1730994989698,0.014,75914.0,75913.0,0.001668]
[1730994989932,0.1530001,75929.0,75913.0,0.001668]
[1730994990172,0.13224102,75926.0,75913.0,0.001668]
[1730994990386,0.014,75917.0,75913.0,0.001668]
[1730994990638,0.13224102,75926.0,75913.0,0.003668]
[1730994990854,0.014,75914.0,75913.0,0.001668]
[1730994991079,0.028,75914.0,75913.0,0.001668]
[1730994991289,0.014,75914.0,75913.0,0.001668]
[1730994991520,0.023,75925.0,75906.0,0.085168]
[1730994991741,0.014,75917.0,75912.0,0.005]
[1730994991955,0.014,75917.0,75916.0,0.01]
[1730994992188,0.0768,75951.0,75916.0,0.01]
[1730994992189,0.005,75955.0,75933.0,0.005]
[1730994992387,0.005,75959.0,75934.0,0.01]
[1730994992618,0.19810218,75963.0,75934.0,0.005]
[1730994992619,0.005,75955.0,75934.0,0.005]
[1730994992826,0.005,75956.0,75931.0,0.0487]
[1730994993031,0.05470489,75957.0,75933.0,0.1530001]
[1730994993291,0.005,75960.0,75934.0,0.13224102]
[1730994993503,0.01,75961.0,75934.0,0.13224102]
[1730994993504,0.001,75935.0,75934.0,0.13224102]
[1730994993718,0.005,75959.0,75931.0,0.0387]
[1730994993719,0.005,75950.0,75931.0,0.0387]
[1730994994159,0.3313432,75945.0,75931.0,0.0387]
[1730994994363,0.3313432,75945.0,75909.0,0.20310218]
[1730994994364,0.001,75935.0,75934.0,0.013]
[1730994994625,0.01,75933.0,75904.0,0.001666]
[1730994994844,0.005,75930.0,75919.0,0.19810218]
[1730994995067,0.337,75934.0,75910.0,0.19810218]
[1730994995068,0.023,75931.0,75910.0,0.19810218]
[1730994995281,0.337,75934.0,75918.0,0.1530001]
[1730994995490,0.337,75934.0,75919.0,0.13224102]
[1730994995697,0.19810218,75937.0,75924.0,0.1530001]
[1730994995946,0.19810218,75937.0,75931.0,0.001]
[1730994995947,0.001,75935.0,75931.0,0.001]
[1730994996166,0.19810218,75946.0,75931.0,0.001]
[1730994996392,0.00263405,75945.0,75925.0,0.12587504]
[1730994996602,0.01,75934.0,75933.0,0.1530001]
[1730994996821,0.00263405,75945.0,75933.0,0.1995001]
[1730994997024,0.19810218,75938.0,75933.0,0.0465]
[1730994997243,0.001,75935.0,75933.0,0.0465]
[1730994997445,0.014,75934.0,75933.0,0.0465]
[1730994997943,0.00263405,75945.0,75933.0,0.0465]
[1730994998391,0.00263405,75945.0,75933.0,0.0505]
[1730994998816,0.00263405,75945.0,75926.0,0.0765]
[1730994998817,0.001,75934.0,75926.0,0.0765]
[1730994999038,0.00263405,75945.0,75926.0,0.0765]
[1730994999244,0.19810218,75938.0,75926.0,0.0765]
[1730994999453,0.00263405,75937.0,75923.0,0.0465]
[1730994999912,0.00263405,75937.0,75924.0,0.13224102]
[1730995000136,0.001,75934.0,75927.0,0.22463466]
[1730995000375,0.19810218,75936.0,75924.0,0.35687568]
[1730995000573,0.00263405,75943.0,75924.0,0.35687568]
[1730995000791,0.014,75937.0,75924.0,0.35687568]
[1730995001245,0.01663405,75937.0,75924.0,0.35687568]
[1730995001693,0.014,75937.0,75933.0,0.22463466]
[1730995001906,0.014,75937.0,75926.0,0.005]
[1730995001907,0.19810218,75936.0,75934.0,0.13224102]
[1730995002115,0.19810218,75936.0,75925.0,0.11]
[1730995002116,0.00263405,75935.0,75925.0,0.1]
[1730995002322,0.00263405,75935.0,75927.0,0.1]
[1730995002529,0.001,75937.0,75928.0,0.13224102]
[1730995002997,0.001,75934.0,75924.0,0.004]
[1730995003218,0.00263405,75935.0,75925.0,0.13224102]
[1730995003433,0.001,75937.0,75925.0,0.13224102]
[1730995003644,0.001,75935.0,75925.0,0.13224102]
[1730995003847,0.19810218,75936.0,75925.0,0.13224102]
[1730995004084,0.00263405,75935.0,75923.0,0.0465]
[1730995004293,0.00363405,75935.0,75925.0,0.005]
[1730995004723,0.00263405,75935.0,75923.0,0.0465]
[1730995005158,0.00263405,75935.0,75925.0,0.005]
[1730995006921,0.15524102,75934.0,75912.0,0.0494]
[1730995007136,0.023,75932.0,75912.0,0.0494]
[1730995007359,0.023,75932.0,75910.0,0.001666]
[1730995007360,0.19810218,75926.0,75925.0,0.005]
[1730995007812,0.00263405,75926.0,75910.0,0.001666]
[1730995008041,0.023,75925.0,75910.0,0.001666]
[1730995008273,0.023,75923.0,75912.0,0.005]
[1730995008502,0.22610218,75925.0,75912.0,0.005]
[1730995008503,0.023,75919.0,75912.0,0.005]
[1730995008942,0.023,75919.0,75910.0,0.001666]
[1730995008943,0.023,75914.0,75910.0,0.001666]
[1730995009168,0.00263405,75913.0,75910.0,0.001666]
[1730995009648,0.023,75912.0,75910.0,0.001666]
[1730995009881,0.02563405,75911.0,75910.0,0.001666]
[1730995010135,0.15787507,75911.0,75910.0,0.001666]
[1730995010846,0.00263405,75911.0,75910.0,0.001666]
[1730995011087,0.00263405,75919.0,75910.0,0.001666]
[1730995014846,0.30459303,75911.0,75910.0,0.001666]
[1730995015063,0.24834102,75911.0,75910.0,0.001666]
[1730995015511,0.25097507,75911.0,75910.0,0.001666]
[1730995015513,0.26497507,75911.0,75910.0,0.001666]
[1730995015729,0.27897507,75911.0,75910.0,0.001666]
[1730995015896,0.26497507,75911.0,75910.0,0.001666]
[1730995016324,0.27897507,75911.0,75910.0,0.001666]
[1730995016654,0.26897507,75911.0,75910.0,0.001666]
[1730995016882,0.27397507,75911.0,75910.0,0.001666]
[1730995017110,0.27897507,75911.0,75910.0,0.001666]
[1730995017578,0.52897507,75911.0,75910.0,0.001666]
[1730995017798,0.52634102,75911.0,75910.0,0.001666]
[1730995019395,0.65807402,75911.0,75910.0,0.001666]
[1730995019611,0.81337257,75911.0,75910.0,0.001666]
[1730995020078,1.33407257,75911.0,75910.0,0.001666]
[1730995020307,1.46631534,75911.0,75910.0,0.001666]
[1730995020554,1.20233957,75911.0,75910.0,0.001666]
[1730995021690,1.04904102,75911.0,75910.0,0.001666]
[1730995022815,1.04904102,75911.0,75910.0,0.00120788]
[1730995024885,1.05104102,75911.0,75910.0,0.00120788]
[1730995025110,1.04904102,75911.0,75910.0,0.00120788]
[1730995025343,1.46831534,75911.0,75910.0,0.00120788]
[1730995025809,1.51161534,75911.0,75910.0,0.00120788]
[1730995026253,1.51361534,75911.0,75910.0,0.00120788]
[1730995027679,1.38137257,75911.0,75910.0,0.00120788]
[1730995029252,0.25,75900.0,75893.0,0.00149]
[1730995029475,0.69129855,75894.0,75893.0,0.00149]
[1730995029709,0.82353957,75894.0,75893.0,0.00149]
[1730995029949,1.69008083,75894.0,75893.0,0.00149]
[1730995030424,0.77304102,75894.0,75893.0,0.00149]
[1730995031109,0.92633957,75894.0,75893.0,0.00149]
[1730995031586,0.94033957,75894.0,75893.0,0.00149]
[1730995031815,0.78704102,75894.0,75893.0,0.00149]
[1730995032042,0.7210899,75894.0,75893.0,0.00149]
[1730995032258,0.7260899,75894.0,75893.0,0.00149]
[1730995032511,0.7210899,75894.0,75893.0,0.00149]
[1730995032725,0.028,75894.0,75893.0,0.00149]
[1730995033178,0.028,75894.0,75893.0,0.12489]
[1730995033389,0.028,75894.0,75893.0,0.25713102]
[1730995033851,0.00263405,75908.0,75893.0,0.25713102]
[1730995033852,0.19810218,75908.0,75893.0,0.25713102]
[1730995034077,0.014,75894.0,75893.0,0.12489]
[1730995034304,0.015,75894.0,75893.0,0.12489]
[1730995034519,0.001,75894.0,75893.0,0.12489]
[1730995034945,0.002,75894.0,75893.0,0.12489]
[1730995035630,0.002,75894.0,75893.0,0.25713102]
[1730995036376,0.19810218,75907.0,75893.0,0.25976614]
[1730995036601,0.19810218,75899.0,75894.0,0.13224102]
[1730995036817,0.00263405,75906.0,75894.0,0.13224102]
[1730995037033,0.00263405,75906.0,75898.0,0.15329855]
[1730995037255,0.19810218,75905.0,75904.0,0.15329855]
[1730995037487,0.000834,75911.0,75904.0,0.13224102]
[1730995037488,0.001,75907.0,75904.0,0.13224102]
[1730995037705,0.001,75907.0,75893.0,0.12789]
[1730995037706,0.19810218,75905.0,75893.0,0.12789]
[1730995037925,0.00263405,75904.0,75894.0,0.13224102]
[1730995038157,0.000834,75911.0,75906.0,0.005]
[1730995038447,0.000834,75911.0,75910.0,0.15829855]
[1730995038686,0.19810218,75928.0,75915.0,0.005]
[1730995038894,0.19810218,75928.0,75918.0,0.15329855]
[1730995039099,0.19810218,75928.0,75916.0,0.1262]
[1730995039100,0.00263405,75927.0,75916.0,0.1262]
[1730995040708,0.00263405,75927.0,75916.0,0.001]
[1730995041001,0.023,75926.0,75916.0,0.003]
[1730995041214,0.00363405,75927.0,75916.0,0.003]
[1730995041215,0.023,75924.0,75916.0,0.003]
[1730995041435,0.01763405,75925.0,75916.0,0.001]
[1730995041436,0.023,75922.0,75916.0,0.001]
[1730995041655,0.023,75920.0,75916.0,0.001]
[1730995041886,0.00263405,75919.0,75916.0,0.001]
[1730995042113,0.005,75925.0,75904.0,0.19810218]
[1730995042352,0.17845369,75924.0,75896.0,0.35140073]
[1730995042578,0.17845369,75924.0,75899.0,0.13224102]
[1730995042802,0.19810218,75919.0,75916.0,0.002]
[1730995043032,0.023,75917.0,75916.0,0.002]
[1730995043269,0.15524102,75917.0,75897.0,0.19810218]
[1730995043506,0.023,75915.0,75897.0,0.19810218]
[1730995043729,0.023,75915.0,75891.0,0.00149]
[1730995043730,0.13487507,75914.0,75904.0,0.001]
[1730995043941,0.023,75913.0,75898.0,0.001]
[1730995044124,0.00263405,75912.0,75891.0,0.00149]
[1730995044384,0.023,75911.0,75891.0,0.00149]
[1730995044599,0.00263405,75910.0,75897.0,0.001]
[1730995045019,0.19810218,75907.0,75897.0,0.001]
[1730995045228,0.00263405,75906.0,75897.0,0.001]
[1730995045884,0.00263405,75911.0,75898.0,0.13224102]
[1730995046183,0.19810218,75907.0,75898.0,0.13224102]
[1730995046411,0.01263405,75906.0,75898.0,0.13390902]
[1730995046637,0.00263405,75906.0,75898.0,0.13390902]
[1730995046868,0.19810218,75915.0,75898.0,0.13390902]
[1730995046869,0.00263405,75911.0,75898.0,0.13390902]
[1730995047085,0.19810218,75907.0,75898.0,0.13590902]
[1730995047310,0.00263405,75906.0,75898.0,0.002668]
[1730995047743,0.01263405,75906.0,75898.0,0.002668]
[1730995048594,0.01263405,75906.0,75898.0,0.002668]
[1730995049022,0.01663405,75906.0,75898.0,0.002668]
[1730995049450,0.19810218,75905.0,75898.0,0.003668]
[1730995049656,0.00263405,75904.0,75898.0,0.002668]
[1730995050122,0.00263405,75904.0,75898.0,0.003668]
[1730995050338,0.00263405,75904.0,75898.0,0.001668]
[1730995050534,0.01,75905.0,75898.0,0.002668]
[1730995050799,0.024,75905.0,75898.0,0.003668]
[1730995051470,0.00263405,75904.0,75898.0,0.003668]
[1730995051908,0.024,75905.0,75904.0,0.0499]
[1730995052124,0.19810218,75919.0,75911.0,0.22482292]
[1730995052355,0.19810218,75919.0,75913.0,0.0832]
[1730995052562,0.19810218,75919.0,75914.0,0.13224102]
[1730995053205,0.19810218,75919.0,75913.0,0.0832]
[1730995053415,0.002,75919.0,75913.0,0.0832]
[1730995053622,0.002,75919.0,75914.0,0.13224102]
[1730995053871,0.001,75919.0,75914.0,0.13224102]
[1730995054079,0.002,75919.0,75914.0,0.14624102]
[1730995054284,0.001,75919.0,75914.0,0.13224102]
[1730995054716,0.002,75919.0,75914.0,0.13224102]
[1730995055400,0.002,75919.0,75914.0,0.14124102]
[1730995055875,0.002,75919.0,75914.0,0.14387529]
[1730995056095,0.000834,75924.0,75914.0,0.14387529]
[1730995056339,0.000834,75924.0,75914.0,0.15787529]
[1730995057048,0.000834,75924.0,75923.0,0.48576394]
[1730995057260,5e-05,75930.0,75929.0,0.005]
[1730995057504,5e-05,75930.0,75929.0,0.13724102]
[1730995057729,5e-05,75930.0,75929.0,0.14987466]
[1730995057957,5e-05,75930.0,75929.0,0.13987466]
[1730995058175,5e-05,75930.0,75929.0,0.14724102]
[1730995058844,5e-05,75930.0,75929.0,0.14224102]
[1730995059084,5e-05,75930.0,75929.0,0.13724102]
[1730995059289,5e-05,75930.0,75929.0,0.21634102]
[1730995059510,5e-05,75930.0,75929.0,0.23034102]
[1730995059746,5e-05,75930.0,75929.0,0.28259084]
[1730995059972,5e-05,75930.0,75929.0,0.29659084]
[1730995060471,0.000884,75930.0,75929.0,0.26859084]
[1730995060690,0.000884,75930.0,75929.0,0.29259084]
[1730995060900,0.000884,75930.0,75929.0,0.43989084]
[1730995061109,0.000884,75930.0,75929.0,0.45389084]
[1730995062020,0.000884,75930.0,75929.0,0.61429084]
[1730995063122,0.000884,75930.0,75929.0,0.60029084]
[1730995063363,0.000884,75930.0,75929.0,0.61429084]
[1730995063572,0.000884,75930.0,75929.0,0.62829084]
[1730995063790,0.000884,75930.0,75929.0,0.61429084]
[1730995064004,0.000884,75930.0,75929.0,0.62829084]
[1730995064217,0.000884,75930.0,75929.0,0.61429084]
[1730995065085,0.000884,75930.0,75929.0,0.60029084]
[1730995065557,0.000884,75930.0,75929.0,0.7673209]
[1730995065774,0.000884,75930.0,75929.0,0.7813209]
[1730995065985,0.000884,75930.0,75929.0,0.7533209]
[1730995066415,0.000884,75930.0,75929.0,0.7813209]
[1730995066681,0.000884,75930.0,75929.0,0.7673209]
[1730995067347,0.19810218,75946.0,75929.0,0.7673209]
[1730995067348,0.19810218,75937.0,75936.0,0.015]
[1730995067562,0.19810218,75946.0,75942.0,0.005]
[1730995067782,0.19810218,75946.0,75945.0,0.15803006]
[1730995067998,0.19810218,75946.0,75945.0,0.29027108]
[1730995068211,0.19810218,75954.0,75945.0,0.28527108]
[1730995068445,0.19810218,75954.0,75948.0,0.005]
[1730995068660,0.19810218,75954.0,75949.0,0.13224102]
[1730995069993,0.19810218,75954.0,75949.0,0.14424102]
[1730995070434,0.19810218,75954.0,75949.0,0.15824102]
[1730995070909,0.00263405,75962.0,75949.0,0.15824102]
[1730995071328,0.00263405,75962.0,75949.0,0.14624102]
[1730995071784,0.00263405,75962.0,75949.0,0.15324102]
[1730995072210,0.000884,75950.0,75949.0,0.15324102]
[1730995072431,0.000884,75950.0,75949.0,0.021]
[1730995076073,0.000884,75950.0,75949.0,0.15324102]
[1730995077915,0.000884,75950.0,75949.0,0.14624102]
[1730995078340,0.000884,75950.0,75949.0,0.14424102]
[1730995078596,0.000884,75950.0,75949.0,0.15824102]
[1730995078812,0.000884,75950.0,75949.0,0.13224102]
[1730995080122,0.000884,75950.0,75949.0,0.15824102]
[1730995080333,0.000884,75950.0,75949.0,0.15124102]
[1730995080784,0.000884,75950.0,75949.0,0.16224102]
[1730995081238,0.000884,75950.0,75949.0,0.15124102]
[1730995081688,0.000884,75950.0,75949.0,0.16424102]
[1730995081939,0.000884,75950.0,75949.0,0.15924102]
[1730995082375,0.000884,75950.0,75949.0,0.027]
[1730995082825,0.000884,75950.0,75949.0,0.014]
[1730995084257,0.000884,75950.0,75949.0,0.025]
[1730995084692,0.000884,75950.0,75949.0,0.029]
[1730995086078,0.000884,75950.0,75949.0,0.18203006]
[1730995086304,0.000884,75950.0,75949.0,0.31427108]
[1730995086719,0.000884,75950.0,75949.0,0.16124102]
[1730995087395,0.000884,75950.0,75949.0,0.15024102]
[1730995087615,0.000884,75950.0,75949.0,0.16324102]
[1730995088040,0.000884,75950.0,75949.0,0.15024102]
[1730995088274,0.000884,75950.0,75949.0,0.20325553]
[1730995088495,0.000884,75950.0,75949.0,0.21425553]
[1730995089836,0.000884,75950.0,75949.0,0.029]
[1730995093411,0.00351805,75950.0,75949.0,0.005]
[1730995093650,0.00351805,75950.0,75949.0,0.016]
[1730995093874,0.000884,75950.0,75949.0,0.016]
[1730995094098,0.000884,75950.0,75949.0,0.005]
[1730995094325,0.000884,75950.0,75949.0,0.004]
[1730995094554,0.001884,75950.0,75949.0,0.005]
[1730995094777,0.003884,75950.0,75949.0,0.13824102]
[1730995095009,0.002884,75950.0,75949.0,0.13624102]
[1730995095232,0.002884,75950.0,75949.0,0.15324102]
[1730995095453,0.000884,75950.0,75949.0,0.14124102]
[1730995095916,0.002884,75950.0,75949.0,0.14224102]
[1730995096143,0.002884,75950.0,75949.0,0.14124102]
[1730995096565,0.002884,75950.0,75949.0,0.13624102]
[1730995101286,0.000884,75950.0,75949.0,0.19541677]
[1730995101717,0.000884,75950.0,75949.0,0.19041677]
[1730995102151,0.000884,75950.0,75949.0,0.24806848]
[1730995102609,0.000884,75950.0,75949.0,0.25306848]
[1730995103079,0.19810218,75963.0,75960.0,0.005]
[1730995103299,0.19810218,75963.0,75962.0,0.15303006]
[1730995103523,0.19810218,75963.0,75962.0,0.32244683]
[1730995103737,0.337,75978.0,75962.0,0.32244683]
[1730995103956,0.00263405,75977.0,75963.0,0.16941677]
[1730995104171,0.00263405,75977.0,75964.0,0.03717575]
[1730995104395,0.00263405,75971.0,75964.0,0.13224102]
[1730995104619,0.000833,75972.0,75965.0,0.02632]
[1730995104836,0.000833,75972.0,75957.0,0.20310218]
[1730995104837,0.00346705,75972.0,75957.0,0.005]
[1730995105053,0.00346705,75972.0,75959.0,0.16936054]
[1730995105336,0.00346705,75972.0,75963.0,0.014]
[1730995105499,0.00346705,75972.0,75959.0,0.13224102]
[1730995105722,0.00346705,75972.0,75961.0,0.005]
[1730995109344,0.00043356,75970.0,75966.0,0.14624102]
[1730995109733,0.00043356,75970.0,75966.0,0.15624102]
[1730995110393,0.00043356,75970.0,75966.0,0.14224102]
[1730995110614,0.00043356,75970.0,75966.0,0.15624102]
[1730995110850,0.00043356,75970.0,75966.0,0.14224102]
[1730995111259,0.00043356,75970.0,75966.0,0.15624102]
[1730995111858,0.00043356,75970.0,75966.0,0.024]
[1730995112063,0.00306761,75970.0,75966.0,0.024]
[1730995114163,0.00043356,75970.0,75966.0,0.024]
[1730995114819,0.00043356,75970.0,75967.0,0.13224102]
[1730995116018,0.00043356,75970.0,75967.0,0.14124102]
[1730995116652,0.00043356,75970.0,75969.0,0.30606012]
[1730995116861,0.00043356,75970.0,75969.0,0.48036964]
[1730995117067,0.00043356,75970.0,75969.0,0.59036964]
[1730995117277,0.00043356,75970.0,75969.0,0.43733958]
[1730995117706,0.00043356,75970.0,75969.0,0.59036964]
[1730995117986,0.00043356,75970.0,75969.0,0.43733958]
[1730995118189,0.00043356,75970.0,75969.0,0.52810993]
[1730995124984,0.00043356,75970.0,75969.0,0.021]
[1730995127581,0.00043356,75970.0,75969.0,0.35095829]
[1730995127791,0.00043356,75970.0,75969.0,0.51592078]
[1730995128004,0.00043356,75970.0,75969.0,0.45832582]
[1730995128269,0.00043356,75970.0,75969.0,0.55431742]
[1730995128486,0.00043356,75970.0,75969.0,0.021]
[1730995128698,0.00043356,75970.0,75969.0,0.19793051]
[1730995129126,0.00043356,75970.0,75969.0,0.35096057]
[1730995129353,0.00043356,75970.0,75969.0,0.53506582]
[1730995129564,0.00043356,75970.0,75969.0,0.30529824]
[1730995129775,0.00043356,75970.0,75969.0,0.38203576]
[1730995129986,0.00043356,75970.0,75969.0,0.30529824]
[1730995130411,0.00043356,75970.0,75969.0,0.36283295]
[1730995130621,0.00043356,75970.0,75969.0,0.30529824]
[1730995131880,0.00043356,75970.0,75969.0,0.29529824]
[1730995132094,0.00043356,75970.0,75969.0,0.29696424]
[1730995132519,0.00043356,75970.0,75969.0,0.19196424]
[1730995134508,0.00043356,75970.0,75969.0,0.19459656]
[1730995134952,0.00043356,75970.0,75969.0,0.3499943]
[1730995135377,0.00043356,75970.0,75969.0,0.4599943]
[1730995135583,0.00043356,75970.0,75969.0,0.30696424]
[1730995136232,0.00043356,75970.0,75969.0,0.53673951]
[1730995136443,0.00043356,75970.0,75969.0,0.40295584]
[1730995136663,0.00043356,75970.0,75969.0,0.5559859]
[1730995136876,0.00043356,75970.0,75969.0,0.3837395]
[1730995137117,0.00043356,75970.0,75969.0,0.38375198]
[1730995137322,0.00043356,75970.0,75969.0,0.30696424]
[1730995137535,0.00043356,75970.0,75969.0,0.38375198]
[1730995137749,0.00043356,75970.0,75969.0,0.36457725]
[1730995137964,0.00043356,75970.0,75969.0,0.30696424]
[1730995138168,0.17620174,75977.0,75971.0,0.005]
[1730995138390,0.17620174,75977.0,75976.0,0.15303006]
[1730995138597,0.17620174,75977.0,75976.0,0.3223283]
[1730995138820,0.337,75978.0,75976.0,0.3273283]
[1730995139030,0.337,75978.0,75977.0,0.16929824]
[1730995139248,0.337,75978.0,75977.0,0.13224102]
[1730995140575,0.337,75978.0,75977.0,0.16942541]
[1730995141564,0.337,75978.0,75977.0,0.17642541]
[1730995141797,0.337,75978.0,75977.0,0.18142541]
[1730995142042,0.19884818,75984.0,75979.0,0.005]
[1730995142286,0.19884818,75984.0,75979.0,0.16942541]
[1730995142547,0.000746,75984.0,75979.0,0.16942541]
[1730995142985,0.000746,75984.0,75979.0,0.22709476]
[1730995143212,0.000746,75984.0,75979.0,0.16942541]
[1730995143504,0.000746,75984.0,75979.0,0.22708622]
[1730995144157,0.000746,75984.0,75979.0,0.26530883]
[1730995144619,0.000746,75984.0,75979.0,0.26130883]
[1730995144836,0.000746,75984.0,75979.0,0.2753258]
[1730995145071,0.000746,75984.0,75979.0,0.2653258]
[1730995145297,0.000746,75984.0,75979.0,0.18842541]
[1730995145298,0.319296,75980.0,75979.0,0.18842541]
[1730995145519,0.319296,75980.0,75979.0,0.20242541]
[1730995147136,0.990296,75980.0,75979.0,0.20242541]
[1730995147635,0.78496004,75980.0,75979.0,0.31187341]
[1730995147867,5e-05,75990.0,75986.0,0.005]
[1730995148128,5e-05,75990.0,75988.0,0.42106012]
[1730995148375,5e-05,75990.0,75988.0,0.59048553]
[1730995148651,5e-05,75990.0,75988.0,1.01160553]
[1730995148864,5e-05,75990.0,75988.0,0.92543057]